fUSD/lending_fUSD_20250214
["ID","MTS","AMOUNT","RATE_DAILY","PERIOD"]
[353062119,1739537449270,-500.0,0.00013698,2]
[353062120,1739537449281,-502.57302255,0.00013698,2]
[353062121,1739537449292,-500.0,0.00013698,2]
[353062122,1739537449303,-500.0,0.00013698,2]
[353062124,1739537449313,-923.32,0.00013698,2]
[353062125,1739537449325,-500.0,0.00013698,2]
[353062126,1739537449336,-500.0,0.00013698,2]
[353062127,1739537449346,-500.0,0.00013698,2]
[353062128,1739537449358,-1275.79,0.00013698,2]
[353062129,1739537449367,-500.0,0.00013698,2]
[353062130,1739537449378,-500.0,0.00013698,2]
[353062131,1739537449388,-500.0,0.00013698,2]
[353062132,1739537449397,-500.0,0.00013698,2]
[353062133,1739537449407,-500.0,0.00013698,2]
[353062134,1739537449417,-157.02973,0.00013698,2]
[353062135,1739537449427,-502.96300585,0.00013698,2]
[353062136,1739537449436,-500.0,0.00013698,2]
[353062137,1739537449446,-500.0,0.00013698,2]
[353062138,1739537449456,-1221.44,0.00013698,2]
[353062139,1739537449466,-500.0,0.00013698,2]
[353062140,1739537449476,-500.0,0.00013698,2]
[353062141,1739537449485,-570.62,0.00013698,2]
[353062142,1739537449495,-500.0,0.00013698,2]
[353062143,1739537449504,-500.0,0.00013698,2]
[353062144,1739537449513,-500.0,0.00013698,2]
[353062145,1739537449522,-500.0,0.00013698,2]
[353062146,1739537449531,-500.0,0.00013698,2]
[353062147,1739537449541,-500.0,0.00013698,2]
[353062148,1739537449551,-500.0,0.00013698,2]
[353062149,1739537449559,-500.0,0.00013698,2]
[353062150,1739537449568,-500.0,0.00013698,2]
[353062151,1739537449578,-500.0,0.00013698,2]
[353062152,1739537449587,-500.0,0.00013698,2]
[353062153,1739537449596,-500.0,0.00013699,2]
[353062154,1739537449605,-500.0,0.00013699,2]
[353062155,1739537449614,-500.0,0.00013699,2]
[353062156,1739537449624,-500.0,0.00013699,2]
[353062157,1739537449637,-200.0,0.00013699,7]
[353062158,1739537449646,-1905.22,0.00013699,2]
[353062159,1739537449655,-8924.74,0.00013699,2]
[353062160,1739537449664,-200.0,0.00013699,2]
[353062161,1739537449674,-204.29,0.00013699,2]
[353062162,1739537449683,-500.0,0.00013699,2]
[353062163,1739537449692,-487.1882673,0.00013699,2]
[353062164,1739537449702,-300.0,0.000137,5]
[353062165,1739537449712,-500.0,0.00013773,2]
[353062166,1739537449721,-500.0,0.00013773,2]
[353062167,1739537449731,-559.05,0.00013779,2]
[353062168,1739537449740,-2186.15,0.00013779,2]
[353062169,1739537449749,-500.0,0.00013779,2]
[353062170,1739537449758,-500.0,0.0001378,2]
[353062171,1739537449767,-274.88448693,0.0001378,2]
[353062172,1739537449776,-500.0,0.0001378,2]
[353062173,1739537449786,-205.69,0.0001378,2]
[353062174,1739537449795,-510.783905,0.0001378,2]
[353062175,1739537449805,-500.0,0.0001378,2]
[353062176,1739537449814,-504.60121381,0.0001378,2]
[353062177,1739537449826,-508.22575554,0.0001378,2]
[353062178,1739537449835,-500.0,0.0001378,2]
[353062179,1739537449844,-505.20854359,0.0001378,2]
[353062180,1739537449854,-500.0,0.0001378,2]
[353062181,1739537449863,-494.86143416,0.0001378,2]
[353062182,1739537449872,-500.0,0.0001378,2]
[353062183,1739537449881,-500.0,0.0001378,2]
[353062184,1739537449890,-500.0,0.0001378,2]
[353062185,1739537449900,-500.0,0.0001378,2]
[353062186,1739537449909,-505.08045471,0.0001378,2]
[353062187,1739537449918,-500.0,0.0001378,2]
[353062188,1739537449928,-505.7330779,0.0001378,2]
[353062189,1739537449937,-408.6125693,0.0001378,2]
[353062190,1739537449946,-500.0,0.0001378,2]
[353062191,1739537449955,-505.29748627,0.0001378,2]
[353062192,1739537449964,-421.64589187,0.0001378,2]
[353062193,1739537449974,-500.0,0.0001378,2]
[353062194,1739537449983,-218.02,0.0001378,2]
[353062195,1739537450075,-500.0,0.0001378,2]
[353062196,1739537450086,-500.0,0.0001378,2]
[353062197,1739537450096,-500.0,0.0001378,2]
[353062198,1739537450106,-500.0,0.0001378,2]
[353062199,1739537450115,-580.0008877,0.0001378,2]
[353062200,1739537450125,-500.0,0.0001378,2]
[353062201,1739537450135,-293.07059061,0.0001378,2]
[353062202,1739537450145,-500.0,0.0001378,2]
[353062203,1739537450154,-500.0,0.0001378,2]
[353062204,1739537450163,-398.38,0.0001378,2]
[353062205,1739537450173,-220.38112584,0.0001378,2]
[353062206,1739537450182,-508.44,0.0001378,2]
[353062207,1739537450191,-583.67,0.0001378,2]
[353062208,1739537450201,-500.0,0.0001378,2]
[353062209,1739537450211,-500.0,0.0001378,2]
[353062210,1739537450220,-500.0,0.0001378,2]
[353062211,1739537450229,-500.0,0.0001378,2]
[353062212,1739537450238,-500.0,0.0001378,2]
[353062213,1739537450247,-500.0,0.0001378,2]
[353062214,1739537450256,-500.0,0.0001378,2]
[353062215,1739537450266,-500.0,0.0001378,2]
[353062216,1739537450275,-500.0,0.0001378,2]
[353062217,1739537450286,-500.0,0.0001378,2]
[353062218,1739537450296,-500.0,0.0001378,2]
[353062219,1739537450306,-500.0,0.0001378,2]
[353062220,1739537450316,-302.29254669,0.0001378,2]
[353062221,1739537450330,-500.0,0.0001378,2]
[353062222,1739537450339,-500.0,0.0001378,2]
[353062223,1739537450349,-255.88952049,0.0001378,2]
[353062224,1739537450359,-500.0,0.0001378,2]
[353062225,1739537450368,-500.0,0.0001378,2]
[353062226,1739537450378,-500.0,0.0001378,2]
[353062227,1739537450388,-500.0,0.0001378,2]
[353062228,1739537450398,-500.0,0.0001378,2]
[353062229,1739537450408,-504.45336374,0.0001378,2]
[353062230,1739537450417,-500.0,0.0001378,2]
[353062231,1739537450427,-500.0,0.0001378,2]
[353062232,1739537450437,-227.89528758,0.0001378,2]
[353062233,1739537450447,-507.14758953,0.0001378,2]
[353062234,1739537450457,-543.0989197,0.0001378,2]
[353062235,1739537450466,-533.88961333,0.0001378,2]
[353062236,1739537450476,-508.8116063,0.0001378,2]
[353062237,1739537450486,-500.0,0.0001378,2]
[353062238,1739537450495,-521.33096899,0.0001378,2]
[353062239,1739537450505,-500.0,0.0001378,2]
[353062240,1739537450515,-380.15259782,0.0001378,2]
[353062241,1739537450525,-500.0,0.0001378,2]
[353062242,1739537450534,-500.0,0.0001378,2]
[353062243,1739537450545,-506.09650641,0.0001378,2]
[353062244,1739537450555,-500.0,0.0001378,2]
[353062245,1739537450564,-500.0,0.0001378,2]
[353062246,1739537450576,-500.0,0.0001378,2]
[353062247,1739537450586,-503.99665116,0.0001378,2]
[353062248,1739537450596,-500.0,0.0001378,2]
[353062249,1739537450606,-500.0,0.0001378,2]
[353062250,1739537450616,-500.0,0.0001378,2]
[353062251,1739537450633,-500.0,0.0001378,2]
[353062252,1739537450643,-500.0,0.0001378,2]
[353062253,1739537450653,-500.0,0.0001378,2]
[353062254,1739537450663,-500.0,0.0001378,2]
[353062255,1739537450672,-502.93464732,0.0001378,2]
[353062256,1739537450682,-500.0,0.0001378,2]
[353062257,1739537450691,-500.0,0.0001378,2]
[353062258,1739537450700,-500.0,0.0001378,2]
[353062259,1739537450711,-500.0,0.0001378,2]
[353062260,1739537450720,-500.0,0.0001378,2]
[353062261,1739537450730,-500.0,0.0001378,2]
[353062262,1739537450740,-500.0,0.0001378,2]
[353062263,1739537450750,-500.0,0.0001378,2]
[353062264,1739537450759,-500.0,0.0001378,2]
[353062265,1739537450769,-268.66871402,0.0001378,2]
[353062266,1739537450779,-500.0,0.0001378,2]
[353062267,1739537450788,-500.0,0.0001378,2]
[353062268,1739537450798,-500.0,0.0001378,2]
[353062269,1739537450808,-500.0,0.0001378,2]
[353062270,1739537450818,-500.0,0.0001378,2]
[353062271,1739537450828,-500.0,0.0001378,2]
[353062272,1739537450838,-502.65595971,0.0001378,2]
[353062273,1739537450848,-500.0,0.0001378,2]
[353062274,1739537450858,-500.0,0.0001378,2]
[353062275,1739537450868,-500.0,0.0001378,2]
[353062276,1739537450878,-500.0,0.0001378,2]
[353062277,1739537450887,-500.0,0.0001378,2]
[353062278,1739537450897,-500.0,0.0001378,2]
[353062279,1739537450907,-500.0,0.0001378,2]
[353062280,1739537450916,-500.0,0.0001378,2]
[353062281,1739537450925,-500.0,0.0001378,2]
[353062282,1739537450935,-531.49,0.0001378,2]
[353062283,1739537450944,-500.0,0.0001378,2]
[353062284,1739537450954,-500.0,0.0001378,2]
[353062285,1739537450964,-500.0,0.0001378,2]
[353062286,1739537450974,-500.0,0.0001378,2]
[353062287,1739537450984,-500.0,0.0001378,2]
[353062288,1739537450994,-500.0,0.0001378,2]
[353062289,1739537451003,-500.0,0.0001378,2]
[353062290,1739537451013,-500.0,0.0001378,2]
[353062291,1739537451023,-500.0,0.0001378,2]
[353062292,1739537451032,-500.0,0.0001378,2]
[353062293,1739537451042,-500.0,0.0001378,2]
[353062294,1739537451053,-500.0,0.0001378,2]
[353062295,1739537451063,-571.8208771,0.0001378,2]
[353062296,1739537451074,-500.0,0.0001378,2]
[353062297,1739537451084,-504.39624553,0.0001378,2]
[353062298,1739537451094,-500.0,0.0001378,2]
[353062299,1739537451104,-504.33430324,0.0001378,2]
[353062300,1739537451113,-500.0,0.0001378,2]
[353062301,1739537451123,-500.0,0.0001378,2]
[353062302,1739537451132,-500.0,0.0001378,2]
[353062303,1739537451142,-500.0,0.0001378,2]
[353062304,1739537451151,-500.0,0.0001378,2]
[353062305,1739537451160,-500.0,0.0001378,2]
[353062306,1739537451170,-500.0,0.0001378,2]
[353062307,1739537451179,-500.0,0.0001378,2]
[353062308,1739537451188,-500.0,0.0001378,2]
[353062309,1739537451198,-512.5359189,0.0001378,2]
[353062310,1739537451207,-500.0,0.0001378,2]
[353062311,1739537451217,-500.0,0.0001378,2]
[353062312,1739537451226,-501.44502321,0.0001378,2]
[353062313,1739537451235,-505.45546004,0.0001378,2]
[353062314,1739537451245,-500.0,0.0001378,2]
[353062315,1739537451255,-500.0,0.0001378,2]
[353062316,1739537451265,-500.0,0.0001378,2]
[353062317,1739537451275,-500.0,0.0001378,2]
[353062318,1739537451285,-500.60521246,0.0001378,2]
[353062319,1739537451294,-500.0,0.0001378,2]
[353062320,1739537451304,-500.0,0.0001378,2]
[353062321,1739537451314,-500.0,0.0001378,2]
[353062322,1739537451324,-500.98260715,0.0001378,2]
[353062323,1739537451335,-500.0,0.0001378,2]
[353062324,1739537451344,-500.0,0.0001378,2]
[353062325,1739537451354,-500.0,0.0001378,2]
[353062326,1739537451363,-500.0,0.0001378,2]
[353062327,1739537451372,-500.0,0.0001378,2]
[353062328,1739537451382,-331.04451156,0.0001378,2]
[353062329,1739537451391,-512.49140883,0.0001378,2]
[353062330,1739537451400,-500.0,0.0001378,2]
[353062331,1739537451410,-500.0,0.0001378,2]
[353062332,1739537451419,-505.27004101,0.0001378,2]
[353062333,1739537451429,-500.0,0.0001378,2]
[353062334,1739537451438,-500.0,0.0001378,2]
[353062335,1739537451447,-510.68342233,0.0001378,2]
[353062336,1739537451457,-501.38030696,0.0001378,2]
[353062337,1739537451466,-500.0,0.0001378,2]
[353062338,1739537451476,-500.0,0.0001378,2]
[353062339,1739537451486,-500.0,0.0001378,2]
[353062340,1739537451495,-500.0,0.0001378,2]
[353062341,1739537451504,-500.0,0.0001378,2]
[353062342,1739537451513,-500.0,0.0001378,2]
[353062343,1739537451523,-504.39355837,0.0001378,2]
[353062344,1739537451532,-500.0,0.0001378,2]
[353062345,1739537451623,-500.0,0.0001378,2]
[353062346,1739537451637,-500.0,0.0001378,2]
[353062347,1739537451647,-500.0,0.0001378,2]
[353062348,1739537451656,-500.0,0.0001378,2]
[353062349,1739537451665,-500.0,0.0001378,2]
[353062350,1739537451677,-500.0,0.0001378,2]
[353062351,1739537451685,-557.63600037,0.0001378,2]
[353062352,1739537451695,-500.0,0.0001378,2]
[353062353,1739537451707,-501.21363606,0.0001378,2]
[353062354,1739537451717,-500.0,0.0001378,2]
[353062355,1739537451727,-500.0,0.0001378,2]
[353062356,1739537451736,-500.0,0.0001378,2]
[353062357,1739537451746,-502.22149305,0.0001378,2]
[353062358,1739537451756,-500.0,0.0001378,2]
[353062359,1739537451765,-500.0,0.0001378,2]
[353062360,1739537451774,-500.0,0.0001378,2]
[353062361,1739537451789,-500.0,0.0001378,2]
[353062362,1739537451798,-500.0,0.0001378,2]
[353062363,1739537451807,-500.0,0.0001378,2]
[353062364,1739537451817,-503.90324184,0.0001378,2]
[353062365,1739537451828,-573.88687401,0.0001378,2]
[353062366,1739537451837,-500.0,0.0001378,2]
[353062367,1739537451846,-500.0,0.0001378,2]
[353062368,1739537451855,-500.0,0.0001378,2]
[353062369,1739537451864,-500.0,0.0001378,2]
[353062370,1739537451873,-500.0,0.0001378,2]
[353062371,1739537451883,-500.0,0.0001378,2]
[353062372,1739537451892,-500.0,0.0001378,2]
[353062373,1739537451901,-500.0,0.0001378,2]
[353062374,1739537451911,-510.20387358,0.0001378,2]
[353062375,1739537451921,-500.0,0.0001378,2]
[353062376,1739537451930,-500.0,0.0001378,2]
[353062377,1739537451939,-500.0,0.0001378,2]
[353062378,1739537451949,-500.0,0.0001378,2]
[353062379,1739537451959,-500.0,0.0001378,2]
[353062380,1739537451968,-500.0,0.0001378,2]
[353062381,1739537451978,-500.0,0.0001378,2]
[353062382,1739537451987,-500.0,0.0001378,2]
[353062383,1739537451997,-584.4459652,0.0001378,2]
[353062384,1739537452006,-605.93877243,0.0001378,2]
[353062385,1739537452015,-500.0,0.0001378,2]
[353062386,1739537452024,-500.0,0.0001378,2]
[353062387,1739537452034,-504.08861852,0.0001378,2]
[353062388,1739537452043,-500.0,0.0001378,2]
[353062389,1739537452052,-500.0,0.0001378,2]
[353062390,1739537452063,-507.82825032,0.0001378,2]
[353062391,1739537452073,-500.0,0.0001378,2]
[353062392,1739537452083,-500.0,0.0001378,2]
[353062393,1739537452092,-500.0,0.0001378,2]
[353062394,1739537452102,-500.0,0.0001378,2]
[353062395,1739537452111,-549.89,0.0001378,2]
[353062396,1739537452122,-500.0,0.0001378,2]
[353062397,1739537452131,-500.0,0.0001378,2]
[353062398,1739537452140,-597.26,0.0001378,2]
[353062399,1739537452150,-500.0,0.0001378,2]
[353062400,1739537452160,-500.0,0.0001378,2]
[353062401,1739537452169,-500.0,0.0001378,2]
[353062402,1739537452179,-303.75032911,0.0001378,2]
[353062403,1739537452189,-500.0,0.0001378,2]
[353062404,1739537452198,-503.78795323,0.0001378,2]
[353062405,1739537452208,-505.85046185,0.0001378,2]
[353062406,1739537452217,-504.00521275,0.0001378,2]
[353062407,1739537452227,-500.0,0.0001378,2]
[353062408,1739537452236,-500.0,0.0001378,2]
[353062409,1739537452246,-169.50158,0.0001378,2]
[353062410,1739537452255,-500.0,0.0001378,2]
[353062411,1739537452265,-200.61530178,0.0001378,2]
[353062412,1739537452274,-500.0,0.0001378,2]
[353062413,1739537452283,-500.0,0.0001378,2]
[353062414,1739537452293,-500.0,0.0001378,2]
[353062415,1739537452302,-500.0,0.0001378,2]
[353062416,1739537452312,-500.0,0.0001378,2]
[353062417,1739537452321,-506.86270644,0.0001378,2]
[353062418,1739537452331,-500.0,0.0001378,2]
[353062419,1739537452340,-500.0,0.0001378,2]
[353062420,1739537452351,-500.0,0.0001378,2]
[353062421,1739537452361,-504.57848659,0.0001378,2]
[353062422,1739537452370,-501.84404982,0.0001378,2]
[353062423,1739537452380,-500.0,0.0001378,2]
[353062424,1739537452389,-500.0,0.0001378,2]
[353062425,1739537452399,-500.0,0.0001378,2]
[353062426,1739537452409,-510.76558993,0.0001378,2]
[353062427,1739537452418,-500.0,0.0001378,2]
[353062428,1739537452427,-500.0,0.0001378,2]
[353062429,1739537452437,-165.94268002,0.0001378,2]
[353062430,1739537452447,-500.0,0.0001378,2]
[353062431,1739537452456,-500.0,0.0001378,2]
[353062432,1739537452466,-503.15181504,0.0001378,2]
[353062433,1739537452475,-500.0,0.0001378,2]
[353062434,1739537452485,-500.0,0.0001378,2]
[353062435,1739537452494,-500.0,0.0001378,2]
[353062436,1739537452503,-506.51041358,0.0001378,2]
[353062437,1739537452512,-500.0,0.0001378,2]
[353062438,1739537452522,-500.0,0.0001378,2]
[353062439,1739537452531,-502.5065292,0.0001378,2]
[353062440,1739537452540,-500.0,0.0001378,2]
[353062441,1739537452549,-500.0,0.0001378,2]
[353062442,1739537452558,-500.0,0.0001378,2]
[353062443,1739537452568,-500.0,0.0001378,2]
[353062444,1739537452579,-500.0,0.0001378,2]
[353062445,1739537452589,-500.0,0.0001378,2]
[353062446,1739537452599,-500.0,0.0001378,2]
[353062447,1739537452608,-500.0,0.0001378,2]
[353062448,1739537452618,-500.0,0.0001378,2]
[353062449,1739537452631,-494.69043714,0.0001378,2]
[353062450,1739537452640,-500.0,0.0001378,2]
[353062451,1739537452649,-500.0,0.0001378,2]
[353062452,1739537452659,-500.0,0.0001378,2]
[353062453,1739537452669,-500.0,0.0001378,2]
[353062454,1739537452679,-500.0,0.0001378,2]
[353062455,1739537452688,-500.0,0.0001378,2]
[353062456,1739537452697,-500.0,0.0001378,2]
[353062457,1739537452707,-500.0,0.0001378,2]
[353062458,1739537452717,-586.55,0.0001378,2]
[353062459,1739537452727,-514.68652992,0.0001378,2]
[353062460,1739537452736,-500.0,0.0001378,2]
[353062461,1739537452745,-708.74,0.0001378,2]
[353062462,1739537452755,-500.0,0.0001378,2]
[353062463,1739537452764,-500.0,0.0001378,2]
[353062464,1739537452774,-500.0,0.0001378,2]
[353062465,1739537452783,-500.0,0.0001378,2]
[353062466,1739537452792,-358.213118,0.0001378,2]
[353062467,1739537452802,-500.0,0.0001378,2]
[353062468,1739537452811,-500.0,0.0001378,2]
[353062469,1739537452820,-500.0,0.0001378,2]
[353062470,1739537452830,-505.88143699,0.0001378,2]
[353062471,1739537452839,-500.0,0.0001378,2]
[353062472,1739537452849,-509.15838512,0.0001378,2]
[353062473,1739537452860,-503.23496982,0.0001378,2]
[353062474,1739537452870,-897.17,0.0001378,2]
[353062475,1739537452879,-500.0,0.0001378,2]
[353062476,1739537452889,-500.0,0.0001378,2]
[353062477,1739537452898,-505.74,0.0001378,2]
[353062478,1739537452908,-519.44932235,0.0001378,2]
[353062479,1739537452918,-500.0,0.0001378,2]
[353062480,1739537452927,-500.0,0.0001378,2]
[353062481,1739537452936,-4571.01,0.0001378,2]
[353062482,1739537452945,-500.0,0.0001378,2]
[353062483,1739537453028,-504.43294364,0.0001378,2]
[353062484,1739537453038,-500.0,0.0001378,2]
[353062485,1739537453047,-500.0,0.0001378,2]
[353062486,1739537453056,-505.22359721,0.0001378,2]
[353062487,1739537453066,-500.0,0.0001378,2]
[353062488,1739537453077,-500.0,0.0001378,2]
[353062489,1739537453085,-500.0,0.0001378,2]
[353062490,1739537453095,-500.0,0.0001378,2]
[353062491,1739537453105,-500.0,0.0001378,2]
[353062492,1739537453115,-500.0,0.0001378,2]
[353062493,1739537453125,-500.0,0.0001378,2]
[353062494,1739537453134,-500.0,0.0001378,2]
[353062495,1739537453144,-500.0,0.0001378,2]
[353062496,1739537453154,-500.0,0.0001378,2]
[353062497,1739537453163,-507.57165952,0.0001378,2]
[353062498,1739537453173,-500.0,0.0001378,2]
[353062499,1739537453183,-500.0,0.0001378,2]
[353062500,1739537453193,-500.0,0.0001378,2]
[353062501,1739537453202,-500.0,0.0001378,2]
[353062502,1739537453212,-507.57522842,0.0001378,2]
[353062503,1739537453221,-500.0,0.0001378,2]
[353062504,1739537453231,-500.0,0.0001378,2]
[353062505,1739537453241,-1099.4,0.0001378,2]
[353062506,1739537453251,-664.01,0.0001378,2]
[353062507,1739537453261,-554.05468152,0.0001378,2]
[353062508,1739537453272,-508.13942368,0.0001378,2]
[353062509,1739537453282,-500.0,0.0001378,2]
[353062510,1739537453291,-500.0,0.0001378,2]
[353062511,1739537453301,-500.0,0.0001378,2]
[353062512,1739537453310,-500.0,0.0001378,2]
[353062513,1739537453320,-500.0,0.0001378,2]
[353062514,1739537453331,-500.0,0.0001378,2]
[353062515,1739537453340,-500.0,0.0001378,2]
[353062516,1739537453350,-500.0,0.0001378,2]
[353062517,1739537453359,-500.0,0.0001378,2]
[353062518,1739537453369,-248.466983,0.0001378,2]
[353062519,1739537453379,-504.03706935,0.0001378,2]
[353062520,1739537453388,-507.28567975,0.0001378,2]
[353062521,1739537453398,-500.0,0.0001378,2]
[353062522,1739537453408,-635.8,0.0001378,2]
[353062523,1739537453418,-500.0,0.0001378,2]
[353062524,1739537453428,-500.0,0.0001378,2]
[353062525,1739537453438,-500.0,0.0001378,2]
[353062526,1739537453447,-500.0,0.0001378,2]
[353062527,1739537453457,-500.0,0.0001378,2]
[353062528,1739537453467,-506.3,0.0001378,2]
[353062529,1739537453477,-504.62931185,0.0001378,2]
[353062530,1739537453486,-500.0,0.0001378,2]
[353062531,1739537453495,-500.0,0.0001378,2]
[353062532,1739537453504,-500.0,0.0001378,2]
[353062533,1739537453514,-505.58340983,0.0001378,2]
[353062534,1739537453523,-500.0,0.0001378,2]
[353062535,1739537453532,-500.0,0.0001378,2]
[353062536,1739537453542,-500.0,0.0001378,2]
[353062537,1739537453551,-500.0,0.0001378,2]
[353062538,1739537453560,-1118.67,0.0001378,2]
[353062539,1739537453571,-500.0,0.0001378,2]
[353062540,1739537453581,-504.31124935,0.0001378,2]
[353062541,1739537453590,-500.0,0.0001378,2]
[353062542,1739537453599,-505.73310016,0.0001378,2]
[353062543,1739537453609,-500.0,0.0001378,2]
[353062544,1739537453619,-500.0,0.0001378,2]
[353062545,1739537453630,-500.0,0.0001378,2]
[353062546,1739537453640,-755.67,0.0001378,2]
[353062547,1739537453650,-605.28,0.0001378,2]
[353062548,1739537453659,-843.42,0.0001378,2]
[353062549,1739537453670,-500.0,0.0001378,2]
[353062550,1739537453679,-500.0,0.0001378,2]
[353062551,1739537453688,-500.0,0.0001378,2]
[353062552,1739537453698,-500.0,0.0001378,2]
[353062553,1739537453708,-503.69376511,0.0001378,2]
[353062554,1739537453717,-500.0,0.0001378,2]
[353062555,1739537453727,-500.0,0.0001378,2]
[353062556,1739537453736,-500.0,0.0001378,2]
[353062557,1739537453745,-500.0,0.0001378,2]
[353062558,1739537453755,-503.96730397,0.0001378,2]
[353062559,1739537453765,-1135.02,0.0001378,2]
[353062560,1739537453775,-500.0,0.0001378,2]
[353062561,1739537453784,-500.0,0.0001378,2]
[353062562,1739537453793,-500.0,0.0001378,2]
[353062563,1739537453802,-500.0,0.0001378,2]
[353062564,1739537453812,-507.12451275,0.0001378,2]
[353062565,1739537453822,-500.0,0.0001378,2]
[353062566,1739537453831,-2092.47,0.0001378,2]
[353062567,1739537453840,-500.0,0.0001378,2]
[353062568,1739537453849,-502.61935014,0.0001378,2]
[353062569,1739537453859,-1777.05,0.0001378,2]
[353062570,1739537453868,-500.0,0.0001378,2]
[353062571,1739537453878,-504.99192568,0.0001378,2]
[353062572,1739537453887,-500.0,0.0001378,2]
[353062573,1739537453897,-500.0,0.0001378,2]
[353062574,1739537453906,-500.0,0.0001378,2]
[353062575,1739537453917,-615.26933065,0.0001378,2]
[353062576,1739537453926,-500.0,0.0001378,2]
[353062577,1739537453936,-503.12398702,0.0001378,2]
[353062578,1739537453947,-500.0,0.0001378,2]
[353062579,1739537453957,-500.0,0.0001378,2]
[353062580,1739537453966,-500.0,0.0001378,2]
[353062581,1739537453976,-517.89943201,0.0001378,2]
[353062582,1739537453986,-500.0,0.0001378,2]
[353062583,1739537453995,-500.0,0.0001378,2]
[353062584,1739537454005,-500.0,0.0001378,2]
[353062585,1739537454014,-500.0,0.0001378,2]
[353062586,1739537454024,-500.0,0.0001378,2]
[353062587,1739537454033,-502.54528306,0.0001378,2]
[353062588,1739537454043,-500.0,0.0001378,2]
[353062589,1739537454052,-500.0,0.0001378,2]
[353062590,1739537454061,-609.01,0.0001378,2]
[353062591,1739537454071,-500.0,0.0001378,2]
[353062592,1739537454082,-503.22647279,0.0001378,2]
[353062593,1739537454092,-500.0,0.0001378,2]
[353062594,1739537454102,-500.0,0.0001378,2]
[353062595,1739537454111,-500.0,0.0001378,2]
[353062596,1739537454121,-622.31,0.0001378,2]
[353062597,1739537454132,-501.18235403,0.0001378,2]
[353062598,1739537454141,-512.29581496,0.0001378,2]
[353062599,1739537454151,-500.0,0.0001378,2]
[353062600,1739537454161,-500.0,0.0001378,2]
[353062601,1739537454171,-500.0,0.0001378,2]
[353062602,1739537454181,-500.0,0.0001378,2]
[353062603,1739537454191,-500.0,0.0001378,2]
[353062604,1739537454201,-500.0,0.0001378,2]
[353062605,1739537454211,-500.0,0.0001378,2]
[353062606,1739537454221,-593.58,0.0001378,2]
[353062607,1739537454231,-500.0,0.0001378,2]
[353062608,1739537454241,-500.0,0.0001378,2]
[353062609,1739537454251,-1408.38,0.0001378,2]
[353062610,1739537454337,-500.0,0.0001378,2]
[353062611,1739537454348,-500.0,0.0001378,2]
[353062612,1739537454358,-1194.09,0.0001378,2]
[353062613,1739537454367,-500.0,0.0001378,2]
[353062614,1739537454376,-500.0,0.0001378,2]
[353062615,1739537454385,-500.0,0.0001378,2]
[353062616,1739537454395,-500.0,0.0001378,2]
[353062617,1739537454405,-981.95,0.0001378,2]
[353062618,1739537454415,-500.0,0.0001378,2]
[353062619,1739537454425,-500.0,0.0001378,2]